bitfinex-derivatives/quotes_BTCF0:USTF0_20241023
["timestamp","ask_amount","ask_price","bid_price","bid_amount"]
[1729692980859,0.075152,66569.0,66568.0,0.07515]
[1729692981049,0.075147,66574.0,66573.0,0.075146]
[1729692981249,0.075141,66578.0,66577.0,0.075141]
[1729692981559,0.075141,66578.0,66577.0,0.245141]
[1729692981955,0.075141,66581.0,66580.0,0.075136]
[1729692982656,0.11612,66588.0,66577.0,0.245141]
[1729692982657,0.075141,66578.0,66577.0,0.245141]
[1729692982850,0.075141,66578.0,66577.0,0.10202943]
[1729692983760,0.075141,66578.0,66577.0,0.075141]
[1729692984059,0.075144,66575.0,66574.0,0.160343]
[1729692984250,0.075144,66575.0,66574.0,0.0852]
[1729692987763,0.075144,66575.0,66572.0,0.02647709]
[1729692988057,0.075144,66575.0,66567.0,0.25686]
[1729692988058,0.075152,66568.0,66567.0,0.25686]
[1729692988245,0.075152,66568.0,66567.0,0.2561]
[1729692988447,0.075152,66568.0,66567.0,0.26080018]
[1729692988662,0.075152,66568.0,66567.0,0.2561]
[1729692989361,0.075152,66568.0,66567.0,0.331253]
[1729692990167,0.075152,66568.0,66567.0,0.35845374]
[1729692993156,0.191181,66578.0,66567.0,0.35845374]
[1729692993157,0.075141,66578.0,66567.0,0.35845374]
[1729692993360,0.075141,66578.0,66571.0,0.075148]
[1729692993361,0.075147,66572.0,66571.0,0.075148]
[1729692993562,0.075147,66572.0,66571.0,0.245148]
[1729692997160,0.075147,66572.0,66568.0,0.083]
[1729692997464,0.075151,66569.0,66568.0,0.083]
[1729692997854,0.075151,66569.0,66568.0,0.158152]
[1729693000867,0.07515,66571.0,66568.0,0.083]
[1729693001063,0.075147,66574.0,66573.0,0.075144]
[1729693001372,0.075136,66583.0,66573.0,0.17]
[1729693001566,0.075142,66579.0,66578.0,0.07514]
[1729693001764,0.11604,66586.0,66575.0,0.075144]
[1729693001967,0.07514,66580.0,66579.0,0.075139]
[1729693002262,0.075143,66577.0,66576.0,0.075142]
[1729693003270,0.17,66589.0,66579.0,0.075136]
[1729693003271,0.075139,66580.0,66579.0,0.075136]
[1729693003472,0.075139,66580.0,66579.0,0.245136]
[1729693004368,0.10287483,66593.0,66579.0,0.245136]
[1729693004369,0.17,66596.0,66579.0,0.245136]
[1729693004678,0.56960994,66608.0,66592.0,0.075123]
[1729693004679,0.075109,66606.0,66592.0,0.075123]
[1729693004880,0.075114,66604.0,66603.0,0.075112]
[1729693005168,0.191139,66615.0,66596.0,0.075119]
[1729693005169,0.075106,66609.0,66597.0,0.088]
[1729693005367,0.075095,66619.0,66597.0,0.088]
[1729693005368,0.075108,66608.0,66607.0,0.075108]
[1729693005570,0.075091,66622.0,66612.0,0.075101]
[1729693005765,0.075097,66617.0,66616.0,0.17]
[1729693008071,0.075097,66617.0,66616.0,0.245098]
[1729693010960,0.075097,66617.0,66611.0,0.0859]
[1729693011162,0.075102,66612.0,66611.0,0.0859]
[1729693011485,0.07511,66605.0,66604.0,0.075111]
[1729693012673,0.245097,66617.0,66608.0,0.075106]
[1729693012674,0.075107,66609.0,66608.0,0.075106]
[1729693012872,0.075107,66609.0,66608.0,0.245106]
[1729693013663,0.17,66620.0,66608.0,0.17]
[1729693013874,0.075101,66613.0,66612.0,0.17]
[1729693014172,0.075106,66609.0,66608.0,0.17]
[1729693014380,0.17,66610.0,66604.0,0.16111]
[1729693014578,0.07511,66605.0,66604.0,0.16111]
[1729693015975,0.07511,66605.0,66604.0,0.086]
[1729693016269,0.07511,66605.0,66604.0,0.161111]
[1729693016688,0.07511,66605.0,66604.0,0.086]
[1729693019173,0.07511,66605.0,66603.0,0.02725672]
[1729693019174,0.17,66606.0,66603.0,0.02725672]
[1729693019481,0.075112,66603.0,66602.0,0.00225195]
[1729693019669,0.245112,66603.0,66602.0,0.00225195]
[1729693019974,0.245112,66603.0,66597.0,0.247379]
[1729693019975,0.245112,66603.0,66597.0,0.08426]
[1729693020275,0.245112,66603.0,66593.0,0.0846]
[1729693020276,0.07512,66596.0,66595.0,0.02740366]
[1729693020479,0.07512,66596.0,66590.0,0.075127]
[1729693020480,0.075126,66591.0,66590.0,0.075127]
[1729693020864,0.17,66591.0,66590.0,0.02666813]
[1729693021073,0.075127,66590.0,66589.0,0.169228]
[1729693022077,0.075123,66595.0,66594.0,0.075121]
[1729693022265,0.075119,66597.0,66596.0,0.075118]
[1729693023079,0.075117,66600.0,66599.0,0.075115]
[1729693023671,0.075113,66603.0,66602.0,0.075111]
[1729693023866,0.17,66610.0,66605.0,0.075107]
[1729693023867,0.07511,66606.0,66605.0,0.075107]
[1729693024684,0.075111,66604.0,66603.0,0.250612]
[1729693024872,0.075111,66604.0,66587.0,0.11592]
[1729693025181,0.245122,66595.0,66594.0,0.167523]
[1729693025380,0.075126,66591.0,66590.0,0.1786]
[1729693025583,0.075137,66581.0,66580.0,0.0863]
[1729693025882,0.075137,66581.0,66580.0,0.161438]
[1729693027387,0.17,66586.0,66583.0,0.075133]
[1729693027388,0.075134,66584.0,66583.0,0.075133]
[1729693029184,0.075134,66584.0,66583.0,0.102479]
[1729693029669,0.17,66589.0,66583.0,0.027346]
[1729693029887,0.075131,66587.0,66586.0,0.075129]
[1729693030275,0.075127,66590.0,66589.0,0.075126]
[1729693030472,0.075115,66601.0,66600.0,0.075115]
[1729693030473,0.075116,66601.0,66600.0,0.075115]
[1729693030673,0.07511,66606.0,66605.0,0.075109]
[1729693030879,0.07511,66606.0,66605.0,0.245109]
[1729693031480,0.075114,66602.0,66601.0,0.1761]
[1729693031691,0.075114,66602.0,66601.0,0.37337836]
[1729693031874,0.075114,66602.0,66601.0,0.44849336]
[1729693033689,0.07511,66606.0,66605.0,0.075108]
[1729693033886,0.07511,66606.0,66605.0,0.245108]
[1729693038789,0.17,66613.0,66605.0,0.245108]
[1729693038790,0.07508,66632.0,66612.0,0.0751]
[1729693038977,0.075082,66630.0,66626.0,0.17]
[1729693039182,0.075082,66630.0,66621.0,0.075091]
[1729693039183,0.075091,66622.0,66621.0,0.075091]
[1729693039883,0.262,66639.0,66624.0,0.075086]
[1729693039884,0.07509,66625.0,66624.0,0.075086]
[1729693040080,0.07509,66625.0,66624.0,0.245086]
[1729693040388,0.07509,66625.0,66624.0,0.335086]
[1729693041681,0.075084,66628.0,66627.0,0.075082]
[1729693041876,0.075072,66639.0,66627.0,0.335082]
[1729693042088,0.075073,66638.0,66637.0,0.26]
[1729693042283,0.075073,66638.0,66637.0,0.335074]
[1729693042681,0.075073,66638.0,66637.0,0.26]
[1729693043091,0.075056,66653.0,66637.0,0.26]
[1729693043285,0.075056,66653.0,66647.0,0.26]
[1729693043286,0.075062,66648.0,66647.0,0.26]
[1729693043482,0.075069,66643.0,66642.0,0.335067]
[1729693044594,0.13371295,66679.0,66642.0,0.26]
[1729693044794,0.075023,66683.0,66660.0,0.26]
[1729693044795,0.075047,66661.0,66660.0,0.26]
[1729693044985,0.075047,66661.0,66656.0,0.26]
[1729693045287,0.26,66661.0,66646.0,0.26225044]
[1729693045493,0.075063,66647.0,66646.0,0.26225044]
[1729693045688,0.075063,66647.0,66646.0,0.00225044]
[1729693046492,0.525183,66647.0,66646.0,0.00225044]
[1729693047488,0.075073,66639.0,66629.0,0.0888]
[1729693047684,0.075082,66631.0,66630.0,0.075081]
[1729693047886,0.26,66638.0,66629.0,0.0888]
[1729693047887,0.075082,66630.0,66629.0,0.0888]
[1729693048290,0.075069,66642.0,66629.0,0.0888]
[1729693048484,0.075074,66638.0,66637.0,0.075074]
[1729693049605,0.26,66643.0,66633.0,0.26076]
[1729693049897,0.11588,66650.0,66629.0,0.0888]
[1729693049898,0.26,66638.0,66629.0,0.0888]
[1729693050199,0.07508,66632.0,66631.0,0.07508]
[1729693051591,0.075082,66630.0,66629.0,0.08956]
[1729693051892,0.075082,66630.0,66629.0,0.0888]
[1729693052404,0.075083,66629.0,66628.0,0.0869]
[1729693052699,0.075083,66629.0,66625.0,0.26076]
[1729693052700,0.075087,66626.0,66625.0,0.00076]
[1729693052903,0.075091,66622.0,66621.0,0.02924506]
[1729693053089,0.075091,66622.0,66621.0,0.00225131]
[1729693055089,0.525411,66622.0,66621.0,0.00225131]
[1729693055907,0.075091,66622.0,66621.0,0.00225131]
[1729693056402,0.525411,66622.0,66621.0,0.00225131]
[1729693056603,0.075091,66622.0,66621.0,0.00225131]
[1729693056806,0.075103,66613.0,66612.0,0.075102]
[1729693057703,0.37584,66625.0,66610.0,0.26088]
[1729693057704,0.075103,66611.0,66610.0,0.00088]
[1729693057898,0.075103,66611.0,66610.0,0.075105]
[1729693058403,0.11584,66629.0,66620.0,0.075093]
[1729693058603,0.075084,66628.0,66620.0,0.26]
[1729693058905,0.075092,66621.0,66620.0,0.335093]
[1729693059098,0.075087,66626.0,66625.0,0.075087]
[1729693059399,0.075092,66622.0,66621.0,0.075091]
[1729693059797,0.075092,66621.0,66620.0,0.0008]
[1729693060001,0.075097,66617.0,66616.0,0.335857]
[1729693060197,0.075097,66617.0,66616.0,0.335097]
[1729693060397,0.075097,66617.0,66616.0,0.36219443]
[1729693063604,0.075102,66612.0,66611.0,0.26]
[1729693063795,0.075102,66612.0,66611.0,0.335103]
[1729693069815,0.075098,66618.0,66617.0,0.075096]
[1729693070413,0.075097,66617.0,66616.0,0.17]
[1729693071611,0.075103,66614.0,66613.0,0.245101]
[1729693074207,0.075107,66608.0,66607.0,0.1940251]
[1729693075211,0.37063376,66608.0,66607.0,0.1940251]
[1729693075417,1.02323636,66608.0,66607.0,0.075107]
[1729693075817,0.94812936,66608.0,66607.0,0.075107]
[1729693076415,0.93842519,66608.0,66599.0,0.075116]
[1729693076619,0.93842519,66607.0,66606.0,0.075109]
[1729693077622,1.01353319,66607.0,66606.0,0.245109]
[1729693079925,0.93842519,66607.0,66606.0,0.245109]
[1729693080123,0.05100161,66607.0,66606.0,0.245109]
[1729693080324,0.0511252,66607.0,66606.0,0.695509]
[1729693080832,0.0511252,66607.0,66606.0,0.72263559]
[1729693081822,0.075088,66626.0,66625.0,0.075086]
[1729693082027,0.46702813,66626.0,66625.0,0.075086]
[1729693082234,0.46702813,66626.0,66625.0,0.16209173]
[1729693082235,0.22595404,66626.0,66625.0,0.16209173]
[1729693082526,0.075083,66630.0,66629.0,0.075082]
[1729693082727,0.075079,66634.0,66633.0,0.075077]
[1729693082961,0.075073,66639.0,66638.0,0.075071]
[1729693083114,0.075073,66639.0,66638.0,0.33207673]
[1729693083821,0.075071,66642.0,66641.0,0.075069]
[1729693084023,0.075071,66642.0,66641.0,0.245069]
[1729693084213,0.075071,66642.0,66641.0,0.33126891]
[1729693084420,0.075071,66642.0,66641.0,0.08619991]
[1729693085331,0.245069,66642.0,66641.0,0.07442666]
[1729693085515,0.245069,66642.0,66635.0,0.08944122]
[1729693085516,0.075071,66640.0,66639.0,0.07442666]
[1729693085715,0.075073,66638.0,66637.0,0.07442666]
[1729693085919,0.17,66640.0,66636.0,0.07442666]
[1729693086121,0.075074,66637.0,66636.0,0.07442666]
[1729693086521,0.075074,66637.0,66635.0,0.07442666]
[1729693086825,0.075078,66634.0,66633.0,0.10121678]
[1729693087028,0.075079,66633.0,66632.0,0.07442666]
[1729693087218,0.07508,66632.0,66631.0,0.07442666]
[1729693087528,0.32978,66632.0,66627.0,0.07442666]
[1729693087720,0.32978,66632.0,66623.0,0.075089]
[1729693087721,0.075085,66627.0,66626.0,0.07442666]
[1729693088516,0.075085,66627.0,66624.0,0.07442666]
[1729693088720,0.17,66625.0,66619.0,0.07442666]
[1729693088916,0.075099,66615.0,66614.0,0.07442666]
[1729693089330,0.17,66620.0,66612.0,0.10393056]
[1729693089627,0.0751,66614.0,66613.0,0.07442666]
[1729693090328,0.075101,66613.0,66612.0,0.0022516]
[1729693090528,0.164601,66613.0,66612.0,0.0022516]
[1729693092525,0.164601,66613.0,66612.0,0.0773536]
[1729693093033,0.075101,66613.0,66612.0,0.0773536]
[1729693094023,0.075101,66613.0,66612.0,0.0022516]
[1729693094737,0.26,66619.0,66612.0,0.0022516]
[1729693097332,0.26,66619.0,66615.0,0.04470841]
[1729693097640,0.0866,66622.0,66615.0,0.04470841]
[1729693097841,0.0866,66622.0,66619.0,0.04470841]
[1729693098027,0.0866,66622.0,66621.0,0.04470841]
[1729693098336,0.3511,66629.0,66614.0,0.33442666]
[1729693098528,0.0887,66628.0,66624.0,0.04465581]
[1729693098729,0.0887,66628.0,66615.0,0.0892]
[1729693098730,0.0887,66628.0,66625.0,0.04465581]
[1729693098929,0.0887,66628.0,66626.0,0.04465581]
[1729693099234,0.0887,66628.0,66627.0,0.04465581]
[1729693099636,0.26,66639.0,66623.0,0.26]
[1729693099834,0.272,66640.0,66630.0,0.04464486]
[1729693100032,0.272,66640.0,66636.0,0.04464486]
[1729693100340,0.26,66639.0,66636.0,0.04464486]
[1729693100644,0.26,66639.0,66619.0,0.22541134]
[1729693100645,0.26,66639.0,66637.0,0.04464486]
[1729693100934,0.272,66640.0,66619.0,0.07442666]
[1729693100935,0.9702,66638.0,66619.0,0.07442666]
[1729693101127,0.26,66620.0,66614.0,0.10200267]
[1729693101331,0.26,66620.0,66611.0,0.07442666]
[1729693102438,0.26,66629.0,66612.0,0.02937328]
[1729693102739,0.26,66633.0,66620.0,0.26]
[1729693103641,0.26,66633.0,66621.0,0.0893]
[1729693104434,0.26,66629.0,66621.0,0.0893]
[1729693104631,0.26,66629.0,66618.0,0.07442666]
[1729693105246,0.26,66620.0,66618.0,0.07442666]
[1729693105443,0.26,66620.0,66617.0,0.02757975]
[1729693105655,0.26,66620.0,66612.0,0.0891516]
[1729693105656,0.26,66625.0,66612.0,0.0891516]
[1729693106041,0.1787,66624.0,66612.0,0.0891516]
[1729693106337,0.26,66617.0,66612.0,0.0022516]
[1729693107242,0.26,66621.0,66612.0,0.0022516]
[1729693108140,0.1787,66624.0,66620.0,0.26]
[1729693108141,0.0877,66624.0,66620.0,0.26]
[1729693108547,0.0896,66632.0,66620.0,0.26]
[1729693108748,0.0896,66632.0,66621.0,0.0852]
[1729693110653,0.26,66634.0,66621.0,0.0852]
[1729693113240,0.26,66634.0,66621.0,0.15962789]
[1729693113955,0.26,66634.0,66622.0,0.07442789]
[1729693114138,0.26,66634.0,66621.0,0.15962789]
[1729693114348,0.26,66634.0,66622.0,0.15909097]
[1729693114547,0.26,66634.0,66622.0,0.07442789]
[1729693115255,0.26,66634.0,66623.0,0.07442789]
[1729693116454,0.26,66629.0,66623.0,0.07442789]
[1729693116750,0.0895,66628.0,66621.0,0.02754123]
[1729693116947,0.0895,66628.0,66619.0,0.07442789]
[1729693117865,0.0895,66628.0,66620.0,0.07442789]
[1729693118644,0.0925,66635.0,66624.0,0.26]
[1729693118846,0.3525,66635.0,66625.0,0.08467444]
[1729693119053,0.0925,66635.0,66624.0,0.33522789]
[1729693119253,0.0878,66637.0,66634.0,0.26]
[1729693120146,0.178,66647.0,66634.0,0.26]
[1729693120350,0.0856,66646.0,66642.0,0.17]
[1729693121651,0.2556,66646.0,66642.0,0.17]
[1729693122357,0.2556,66646.0,66626.0,0.1768]
[1729693122358,0.0856,66646.0,66641.0,0.26]
[1729693122560,0.0856,66646.0,66626.0,0.1768]
[1729693122561,0.26,66654.0,66645.0,0.26]
[1729693122757,0.11584,66656.0,66645.0,0.26]
[1729693123061,0.075067,66646.0,66645.0,0.335065]
[1729693123261,0.1746,66655.0,66649.0,0.075057]
[1729693123262,0.07506,66650.0,66649.0,0.075057]
[1729693123561,0.07506,66650.0,66649.0,0.335057]
[1729693123749,0.07506,66650.0,66646.0,0.0825]
[1729693123949,0.075063,66647.0,66646.0,0.0825]
[1729693124454,0.075063,66647.0,66645.0,0.3625917]
[1729693124455,0.075064,66646.0,66645.0,0.0275277]
[1729693124661,0.075064,66646.0,66645.0,0.0266477]
[1729693124853,0.075068,66643.0,66642.0,0.075065]
[1729693125352,0.075071,66640.0,66639.0,0.02841057]
[1729693125555,0.075071,66640.0,66639.0,0.02765057]
[1729693125758,0.07508,66633.0,66632.0,0.075078]
[1729693125949,0.1158,66652.0,66627.0,0.00076]
[1729693125950,0.07508,66632.0,66627.0,0.00076]
[1729693126148,0.075081,66631.0,66627.0,0.02674058]
[1729693126348,0.075081,66631.0,66623.0,0.07509]
[1729693126349,0.075089,66624.0,66623.0,0.07509]
[1729693126559,0.075083,66630.0,66629.0,0.075081]
[1729693127958,0.075084,66628.0,66627.0,0.26]
[1729693128150,0.075084,66628.0,66627.0,0.335085]
[1729693129056,0.075084,66628.0,66627.0,0.075085]
[1729693129758,0.075081,66632.0,66626.0,0.26]
[1729693130063,0.075081,66632.0,66631.0,0.075081]
[1729693135366,0.075081,66632.0,66631.0,0.10205036]
[1729693138967,0.335081,66632.0,66627.0,0.07442789]
[1729693139272,0.075073,66638.0,66627.0,0.14951289]
[1729693139273,0.075084,66628.0,66627.0,0.14951289]
[1729693139764,0.075084,66628.0,66627.0,0.075085]
[1729693140161,0.075084,66628.0,66627.0,0.10147265]
[1729693142767,0.075094,66619.0,66618.0,0.164994]
[1729693143472,0.075094,66619.0,66618.0,0.19137386]
[1729693143769,0.075089,66624.0,66623.0,0.075088]
[1729693143958,0.075078,66636.0,66635.0,0.075076]
[1729693144265,0.075078,66636.0,66635.0,0.245076]
[1729693144465,0.075078,66636.0,66635.0,0.075076]
[1729693144871,0.075079,66633.0,66632.0,0.24508]
[1729693145166,0.17,66633.0,66621.0,0.17]
[1729693145360,0.075093,66620.0,66619.0,0.075094]
[1729693146165,0.075094,66619.0,66618.0,0.26066]
[1729693146472,0.075094,66619.0,66612.0,0.0022516]
[1729693146473,0.0751,66614.0,66613.0,0.24457278]
[1729693146775,0.075098,66617.0,66616.0,0.075095]
[1729693146961,0.075095,66620.0,66619.0,0.075092]
[1729693147166,0.075095,66620.0,66619.0,0.245092]
[1729693147473,0.075093,66620.0,66619.0,0.245094]
[1729693147669,0.075097,66617.0,66616.0,0.245097]
[1729693148461,0.0764,66629.0,66613.0,0.34713296]
[1729693148462,0.0751,66614.0,66613.0,0.34713296]
[1729693148665,0.0751,66614.0,66613.0,0.27256018]
[1729693149973,0.2451,66614.0,66613.0,0.02745918]
[1729693150164,0.2451,66614.0,66613.0,0.08523049]
[1729693150468,0.075101,66613.0,66612.0,0.0022516]
[1729693150669,0.075101,66613.0,66612.0,0.0773536]
[1729693150872,0.075101,66613.0,66612.0,0.07679873]
[1729693151072,0.075101,66613.0,66612.0,0.18874194]
[1729693151369,0.075101,66613.0,66612.0,0.02888583]
[1729693152460,0.075101,66613.0,66612.0,0.10173623]
[1729693154977,0.0726,66616.0,66615.0,0.075097]
[1729693154978,0.075101,66616.0,66615.0,0.075097]
[1729693157192,0.075101,66616.0,66615.0,0.10263472]
[1729693160181,0.075101,66616.0,66615.0,0.02753772]
[1729693160375,0.075102,66612.0,66610.0,0.09605542]
[1729693160575,0.17,66612.0,66610.0,0.0215]
[1729693160774,0.075103,66611.0,66610.0,0.0215]
[1729693161473,0.075103,66611.0,66610.0,0.04802582]
[1729693161779,0.075103,66611.0,66610.0,0.0215]
[1729693162486,0.245103,66611.0,66610.0,0.0215]
[1729693164174,0.245103,66611.0,66610.0,0.08127881]
[1729693164383,0.245103,66611.0,66610.0,0.0215]
[1729693164989,0.695463,66611.0,66610.0,0.05979343]
[1729693165288,0.075115,66601.0,66589.0,0.07531542]
[1729693165471,0.075115,66601.0,66593.0,0.07737622]
[1729693165472,0.245123,66594.0,66593.0,0.07737622]
[1729693165676,0.245123,66594.0,66593.0,0.02982488]
[1729693166285,0.245123,66594.0,66579.0,0.075138]
[1729693166286,0.07514,66580.0,66579.0,0.075138]
[1729693166474,0.07514,66580.0,66579.0,0.27656297]
[1729693167183,0.075135,66583.0,66582.0,0.075133]
[1729693167890,0.075135,66583.0,66582.0,0.07983219]
[1729693168987,0.245133,66586.0,66585.0,0.075133]
[1729693169286,0.075127,66592.0,66591.0,0.075125]
[1729693169590,0.07512,66597.0,66596.0,0.075117]
[1729693170389,0.1472,66600.0,66593.0,0.075123]
[1729693170390,0.075124,66594.0,66593.0,0.075123]
[1729693170583,0.245124,66594.0,66593.0,0.075123]
[1729693172178,0.245124,66594.0,66591.0,0.02687472]
[1729693172179,0.075125,66592.0,66591.0,0.02687472]
[1729693172384,0.075125,66592.0,66591.0,0.075126]
[1729693173789,0.17,66594.0,66588.0,0.02762424]
[1729693173983,0.245128,66589.0,66588.0,0.075129]
[1729693174184,0.075128,66589.0,66588.0,0.075129]
[1729693174585,0.075128,66589.0,66588.0,0.07982782]
[1729693175001,0.075125,66592.0,66591.0,0.075125]
[1729693175696,0.075125,66592.0,66591.0,0.075126]
[1729693176086,0.075127,66590.0,66589.0,0.14968342]
[1729693176287,0.075127,66590.0,66589.0,0.1658738]
[1729693180103,0.075127,66590.0,66589.0,0.00469866]
[1729693180304,0.17,66593.0,66588.0,0.02666988]
[1729693180487,0.0595,66596.0,66585.0,0.075132]
[1729693180488,0.245128,66589.0,66585.0,0.075132]
[1729693180691,0.075132,66586.0,66585.0,0.075132]
[1729693181003,0.075132,66586.0,66585.0,0.0798309]
[1729693182504,0.075129,66589.0,66588.0,0.075126]
[1729693183805,0.075129,66589.0,66588.0,0.07982487]
[1729693184193,0.17,66597.0,66588.0,0.17469887]
[1729693184393,0.17,66597.0,66590.0,0.075126]
[1729693184394,0.075127,66591.0,66590.0,0.075126]
[1729693187199,0.075127,66591.0,66590.0,0.16124996]
[1729693188300,0.075127,66591.0,66590.0,0.08616769]
[1729693188503,0.245127,66591.0,66590.0,0.11356011]
[1729693188704,0.245127,66591.0,66590.0,0.18868711]
[1729693188910,0.245127,66591.0,66590.0,0.11356011]
[1729693193106,0.245127,66591.0,66590.0,0.20304744]
[1729693194208,0.245127,66591.0,66590.0,0.11356011]
[1729693195109,0.075127,66590.0,66588.0,0.07493041]
[1729693195312,0.075141,66578.0,66577.0,0.075141]
[1729693195700,0.17,66581.0,66580.0,0.075138]
[1729693195701,0.075138,66581.0,66580.0,0.075138]
[1729693196112,0.245138,66581.0,66580.0,0.075138]
[1729693199122,0.0614,66584.0,66583.0,0.075135]
[1729693199418,0.075125,66593.0,66583.0,0.79056]
[1729693199419,0.0574,66593.0,66583.0,0.79056]
[1729693199618,0.0574,66593.0,66592.0,0.245125]
[1729693199916,0.132524,66593.0,66592.0,0.075125]
[1729693200304,0.07513,66589.0,66588.0,0.075128]
[1729693201019,0.07513,66589.0,66588.0,0.10174435]
[1729693203114,0.0574,66593.0,66588.0,0.10174435]
[1729693203115,0.075125,66592.0,66591.0,0.075125]
[1729693203313,0.075122,66595.0,66590.0,0.17]
[1729693203619,0.075122,66595.0,66594.0,0.245123]
[1729693203919,0.075122,66595.0,66594.0,0.075123]
[1729693204522,0.075126,66592.0,66591.0,0.075126]
[1729693205024,0.075126,66592.0,66591.0,0.10285165]
[1729693205416,0.075126,66592.0,66591.0,0.02772565]
[1729693205417,0.245126,66592.0,66591.0,0.02772565]
[1729693205615,0.075133,66585.0,66575.0,0.075142]
[1729693205812,0.245142,66577.0,66576.0,0.00469933]
[1729693206430,0.17,66580.0,66571.0,0.17]
[1729693206613,0.07514,66579.0,66578.0,0.07514]
[1729693206813,0.075137,66582.0,66581.0,0.075135]
[1729693209823,0.075143,66577.0,66576.0,0.07514]
[1729693210024,0.07515,66570.0,66569.0,0.075149]
[1729693210220,0.17,66572.0,66569.0,0.16546752]
[1729693210420,0.075149,66573.0,66572.0,0.075145]
[1729693210720,0.075149,66573.0,66567.0,0.075151]
[1729693210721,0.075154,66568.0,66567.0,0.075151]
[1729693210921,0.075154,66568.0,66567.0,0.09039983]
[1729693211123,0.075154,66568.0,66567.0,0.00470017]
[1729693211523,0.075154,66566.0,66565.0,0.10398202]
[1729693211730,0.134151,66569.0,66568.0,0.075152]
[1729693212028,0.075147,66572.0,66571.0,0.075149]
[1729693212329,0.11592,66579.0,66571.0,0.17]
[1729693212629,0.075143,66576.0,66575.0,0.075143]
[1729693213327,0.17,66580.0,66575.0,0.17]
[1729693213528,0.07514,66580.0,66579.0,0.075138]
[1729693214124,0.07514,66580.0,66578.0,0.17]
[1729693214125,0.134136,66583.0,66582.0,0.075136]
[1729693214327,0.075136,66583.0,66582.0,0.245136]
[1729693214528,0.075136,66583.0,66582.0,0.075136]
[1729693216037,0.07513,66588.0,66587.0,0.075129]
[1729693216228,0.0627,66595.0,66586.0,0.17]
[1729693216430,0.075117,66600.0,66599.0,0.075117]
[1729693216625,0.075117,66600.0,66585.0,0.075133]
[1729693216626,0.0569,66602.0,66598.0,0.17]
[1729693216828,0.075125,66594.0,66591.0,0.17]
[1729693217131,0.075127,66590.0,66589.0,0.075128]
[1729693217338,0.075127,66590.0,66589.0,0.15993075]
[1729693217524,0.17,66599.0,66589.0,0.08480275]
[1729693217720,0.075118,66599.0,66598.0,0.075116]
[1729693218232,0.132014,66602.0,66601.0,0.075115]
[1729693218431,0.132014,66602.0,66601.0,0.245115]
[1729693219628,0.17622,66613.0,66605.0,0.075107]
[1729693219629,0.075109,66606.0,66605.0,0.075107]
[1729693219825,0.075109,66606.0,66605.0,0.245107]
[1729693220241,0.2875,66613.0,66607.0,0.075105]
[1729693220242,0.075107,66608.0,66607.0,0.075105]
[1729693220731,0.0572,66613.0,66612.0,0.075102]
[1729693221037,0.132301,66613.0,66612.0,0.245102]
[1729693222038,0.0597,66616.0,66614.0,0.075099]
[1729693222334,0.0597,66616.0,66605.0,0.02666288]
[1729693222335,0.134798,66616.0,66615.0,0.245099]
[1729693223457,0.134798,66616.0,66615.0,0.075099]
[1729693224437,0.134798,66616.0,66615.0,0.11985589]
[1729693224637,0.134798,66616.0,66615.0,0.1475552]
[1729693225338,0.134798,66616.0,66615.0,0.02769931]
[1729693225641,0.134798,66616.0,66612.0,0.17]
[1729693225642,0.075101,66613.0,66612.0,0.245102]
[1729693226743,0.075101,66613.0,66612.0,0.27270191]
[1729693226939,0.17,66623.0,66615.0,0.075099]
[1729693227132,0.075095,66620.0,66619.0,0.075093]
[1729693227326,0.0572,66624.0,66619.0,0.17]
[1729693227532,0.17,66629.0,66628.0,0.075084]
[1729693227533,0.075084,66629.0,66628.0,0.075084]
[1729693227740,0.075084,66629.0,66628.0,0.245084]
[1729693228443,0.0569,66635.0,66624.0,0.17]
[1729693228444,0.075087,66626.0,66624.0,0.17]
[1729693228641,0.075085,66628.0,66627.0,0.075085]
[1729693228838,0.075085,66628.0,66627.0,0.245085]
[1729693230643,0.075088,66625.0,66624.0,0.17]
[1729693230960,0.075079,66633.0,66619.0,0.075094]
[1729693230961,0.075094,66620.0,66619.0,0.075094]
[1729693231129,0.075098,66617.0,66616.0,0.075097]
[1729693231735,0.075099,66615.0,66614.0,0.0291689]
[1729693231938,0.075096,66618.0,66617.0,0.075096]
[1729693232140,0.075096,66618.0,66617.0,0.245096]
[1729693232330,0.075096,66618.0,66614.0,0.0291689]
[1729693232331,0.075099,66615.0,66614.0,0.0291689]
[1729693233145,0.075099,66615.0,66614.0,0.00225153]
[1729693234335,0.075118,66599.0,66598.0,0.075117]
[1729693234531,0.0716,66617.0,66598.0,0.02673343]
[1729693234737,0.075102,66612.0,66611.0,0.17]
[1729693234939,0.075099,66615.0,66614.0,0.0751]
[1729693235141,0.075099,66615.0,66614.0,0.2451]
[1729693235637,0.075099,66615.0,66614.0,0.17]
[1729693235837,0.075099,66615.0,66611.0,0.075103]
[1729693235838,0.075102,66612.0,66611.0,0.245103]
[1729693236539,0.17,66614.0,66603.0,0.17]
[1729693236736,0.17,66608.0,66600.0,0.17]
[1729693236938,0.075111,66605.0,66604.0,0.075109]
[1729693239847,0.0669,66614.0,66603.0,0.17]
[1729693240144,0.075107,66609.0,66608.0,0.245106]
[1729693241142,0.075102,66612.0,66611.0,0.075101]
[1729693241345,0.075098,66618.0,66617.0,0.075095]
[1729693241647,0.11588,66624.0,66619.0,0.17]
[1729693241648,0.075093,66620.0,66619.0,0.17]
[1729693242145,0.075093,66620.0,66610.0,0.075105]